Cogmind - Beta 16 @@@ ROGUE MODE // 2026.01.10 @ 16:53:05 Player: Mojosoup Result: Self-destructed Performance ------------- Evolutions (1) 500 Regions Visited (3) 600 Robots Destroyed (10) 50 Value Destroyed (219) 219 Prototype IDs (4) 80 Alien Tech Used (0) 0 Bonus (0) 0 TOTAL SCORE: 1449 Bonus ------- None Cogmind --------- Core Integrity 287/400 Matter 188/300 Energy 79/100 System Corruption 0% Temperature Cool (0) Movement Core (50) Location -9/Materials Parts ------- > --- POWER (1) -------- (None) > --- PROPULSION (3) --- (None) > --- UTILITY (3) ------ Sensor Array Signal Interpreter > --- WEAPON (2) ------- Medium Laser > --- INVENTORY (5) ---- Terrain Scan Processor Medium Armor Plating Medium Armor Plating Peak State ------------ > --- POWER ------------ Light Ion Engine > --- PROPULSION ------- Compact Wheel Compact Wheel > --- UTILITY ---------- High-capacity Storage Unit Light Armor Plating > --- WEAPON ----------- Light Assault Rifle Light Cannon > --- INVENTORY -------- Light Ion Engine Compact Wheel Heat Sink Sensor Array Signal Interpreter Light Armor Plating Medium Laser Medium Laser Light Cannon Mining Laser [Rating: 8] Favorites ----------- Power Light Ion Engine Engine Light Ion Engine Propulsion Compact Wheel Treads Light Treads Leg Aluminum Leg Wheel Compact Wheel Utility Light Armor Plating Device Sensor Array Storage High-capacity Storage Unit Processor Signal Interpreter Protection Light Armor Plating Weapon Light Assault Rifle Energy Gun Medium Laser Ballistic Gun Light Assault Rifle Ballistic Cannon Light Cannon Launcher Grenade Launcher Special Weapon Mining Laser Build | -11 -10 -10 -9 ------- Run | Yrd Mat Min Mat Slots Evolved 2 | . . . 2 Power . | . . . . Propulsion 1 | . . . 1 Utility 1 | . . . 1 Weapon . | . . . . Parts Attached 21 | 6 7 3 5 Power 2 | 1 . 1 . Engine 2 | 1 . 1 . Core . | . . . . Reactor . | . . . . Propulsion 6 | 2 4 . . Treads 2 | . 2 . . Leg 2 | 2 . . . Wheel 2 | . 2 . . Hover . | . . . . Flight . | . . . . Utility 6 | 1 2 1 2 Device 1 | . . . 1 Storage 2 | 1 1 . . Processor 1 | . . . 1 Hackware . | . . . . Protection 2 | . 1 1 . Artifact . | . . . . Weapon 7 | 2 1 1 3 Energy Gun 2 | 1 . . 1 Energy Cannon . | . . . . Ballistic Gun 1 | 1 . . . Ballistic Cannon 2 | . 1 1 . Launcher 1 | . . . 1 Special Weapon 1 | . . . 1 Impact Weapon . | . . . . Slashing Weapon . | . . . . Piercing Weapon . | . . . . Special Melee Weapon . | . . . . Unidentified Prototypes . | . . . . Parts Lost 10 | . . 8 2 Power 2 | . . 2 . Propulsion 2 | . . 2 . Utility 2 | . . 2 . Weapon 4 | . . 2 2 Highest Loss Streak 4 | . . 4 2 To Critical Strikes . | . . . . Average Backups 7 | 2 8 10 4 Power . | . 1 . . Propulsion 1 | 2 1 1 . Utility 2 | . 2 3 1 Weapon 3 | . 3 5 2 Tool/Special . | . . . . Unused Backups 8 | . 2 4 2 Power . | . . . . Propulsion 3 | . 2 1 . Utility 4 | . . 2 2 Weapon 1 | . . 1 . Tool/Special . | . . . . Average Slot Usage (%) 88 | . 99 94 25 Engine 12 | . 14 13 . Treads 5 | . 10 . . Leg 4 | . 8 . . Wheel 14 | . 8 27 . Device 1 | . . . 11 Storage 12 | . 14 13 . Processor 1 | . . . 10 Protection 11 | . 13 12 . Ballistic Gun 11 | . 14 11 . Ballistic Cannon 12 | . 13 14 . Peak Build Rating 8 | 6 8 8 3 Average Rating 6 | 4 7 7 2 On Entrance 3 | . 6 8 . Avg Prop Armor Cover (%) . | . . . . Naked Turns 6 | . . 6 . Heaviest Build 50 | 11 50 50 3 Greatest Support 40 | 20 40 32 3 Greatest Overweight (x) 3 | 1 3 1 . Average Overweight (x) . | . . . . Largest Inventory Capacity 20 | 8 20 20 5 Average Capacity 15 | 6 16 19 5 Most Carried 11 | 6 11 11 5 Average Carried 8 | 2 8 10 4 Final Capacity 20 | 8 20 5 5 Final Carried 11 | 6 11 5 3 Class Distribution -------------------- 100% | Mutant Dominant Class ---------------- Mutant | -10/Materials Mutant | -10/Mines Mutant | -9/Materials Resources | -11 -10 -10 -9 ----------- Run | Yrd Mat Min Mat Matter Collected 444 | 223 44 177 . Remotely . | . . . . Salvage Created 172 | . 54 67 51 Parts 11 | . 5 3 3 Haulers Intercepted . | . . . . Recyclers Shooed . | . . . . Parts Field Recycled . | . . . . Retrieved Matter . | . . . . Parts Self-Destructed . | . . . . Prevented . | . . . . Parts Restored . | . . . . Kills | -11 -10 -10 -9 ------- Run | Yrd Mat Min Mat Combat Hostiles Destroyed 10 | . 4 2 4 Guns 2 | . 2 . . Cannons 4 | . 2 2 . AOE 4 | . . . 4 Classes Destroyed 2 | . 2 . . Swarmer 6 | . 3 . 3 Grunt 4 | . 1 2 1 Best Kill Streak 4 | . 3 2 4 Combat Bots Only 4 | . 3 2 4 Max Kills in Single Turn 2 | . 1 1 2 Gunslinging . | . . . . Exploded 2 | . . . 2 Melee . | . . . . Uniques/NPCs Destroyed . | . . . . Combat | -11 -10 -10 -9 -------- Run | Yrd Mat Min Mat Hostile Shots Fired 83 | . 30 43 10 Missed 21 | . 11 8 2 Hits 62 | . 19 35 8 Melee 4 | . . . 4 Projectile 58 | . 19 35 4 AOE 5 | . . 5 . Critical Strikes 4 | . . 3 1 Damage Taken 979 | . 153 611 215 Core 263 | . 49 101 113 Absorbed by Shields . | . . . . Core Remaining (%) 70 | 100 . 40 . Volleys Fired 35 | . 15 10 10 Largest 2 | . 2 2 1 Hottest 100 | . 50 50 100 Shots Fired 54 | . 24 20 10 Gun 20 | . 9 10 1 Cannon 25 | . 15 10 . Launcher 8 | . . . 8 Special 1 | . . . 1 Kinetic 44 | . 24 20 . Thermal 2 | . . . 2 Explosive 8 | . . . 8 Electromagnetic . | . . . . Robot Hit Streak 5 | . 5 3 4 Robot Miss Streak 3 | . 3 3 1 Penetration Max . | . . . . Secondary Targets . | . . . . Shots Hit Robots 28 | . 10 12 6 Core Hits 17 | . 5 2 10 Critical Kills 1 | . 1 . . Critical Parts Destroyed . | . . . . Critical Strikes 3 | . 2 . 1 Burn 1 | . . . 1 Destroy 1 | . 1 . . Blast 1 | . 1 . . Melee Attacks . | . . . . Impact . | . . . . Slashing . | . . . . Piercing . | . . . . Sneak Attacks . | . . . . Combat Hostiles . | . . . . Follow-up Attacks . | . . . . Damage Inflicted 725 | . 151 149 425 Guns 127 | . 56 59 12 Cannons 178 | . 88 90 . Explosions 380 | . . . 380 Melee . | . . . . Ramming 16 | . 7 . 9 Kinetic 293 | . 144 149 . Thermal 36 | . . . 36 Explosive 380 | . . . 380 Electromagnetic . | . . . . Impact . | . . . . Slashing . | . . . . Piercing . | . . . . Highest Corruption . | . . . . Average Corruption . | . . . . Corruption Purged . | . . . . Corruption Blocked . | . . . . Overload Shots . | . . . . Overflow Damage 27 | . . . 27 Projectiles . | . . . . Explosions 27 | . . . 27 Melee . | . . . . Knockbacks 4 | . 2 2 . Impact . | . . . . Kinetic 3 | . 2 1 . Secondary 1 | . . 1 . Self-Inflicted Damage 49 | . . . 49 Shots 2 | . . . 2 Rammed 3 | . 1 . 2 Targets Rammed 3 | . 1 . 2 Kicked . | . . . . Crushed . | . . . . Highest Temperature 168 | . 44 168 . Average Temperature 58 | . 18 87 . Received Heat Transfer 258 | . 12 228 18 Siege Activations . | . . . . Martial Activations . | . . . . Shielding Activations . | . . . . Robots Disrupted . | . . . . Combat Hostiles . | . . . . Robots Corrupted . | . . . . Combat Hostiles . | . . . . Parts Fried . | . . . . Impact Corruptions . | . . . . Robots Melted . | . . . . Combat Hostiles . | . . . . Parts Melted . | . . . . Heat Transferred 161 | . . . 161 Parts Sabotaged . | . . . . Parts Stolen . | . . . . Parts Stripped . | . . . . Power Chain Reactions . | . . . . Alert | -11 -10 -10 -9 ------- Run | Yrd Mat Min Mat Maximum Alert Level . | . . . . Low Security (%) 100 | 100 100 100 100 Level 1 . | . . . . Level 2 . | . . . . Level 3 . | . . . . Level 4 . | . . . . Level 5 . | . . . . High Security . | . . . . Max Security . | . . . . Peak Influence 130 | . 115 64 130 Initial 44 | . . 44 . Average 18 | . 17 16 37 Influence Increases 339 | . 159 50 130 Destroy 0b10 Robot/C 200 | . 80 40 80 Destroy Leader 30 | . 10 10 10 Successful Hack 9 | . 9 . . Disable Machine 15 | . 15 . . Destroy Structure 40 | . . . 40 Lose Combat Pursuer 45 | . 45 . . Influence Decreases 249 | . 44 165 40 Entered New Map 71 | . . 71 . Time Decay 138 | . 44 74 20 Lost Part 40 | . . 20 20 Squads Dispatched 2 | . 1 . 1 Investigation . | . . . . Extermination . | . . . . Reinforcement 2 | . 1 . 1 Assault . | . . . . Garrison . | . . . . Intercept . | . . . . Searches Triggered . | . . . . Construction Impeded . | . . . . Haulers Reinforced . | . . . . Active Scanning Responses . | . . . . Cargo Convoy Interrupts . | . . . . Stealth | -11 -10 -10 -9 --------- Run | Yrd Mat Min Mat Distress Signals 3 | . 2 . 1 Communications Jammed . | . . . . Distress Signals . | . . . . Times Spotted 29 | . 14 6 9 Peak Tracking Total 8 | . 6 4 8 Tactical Retreats 2 | . 2 . . Traps | -11 -10 -10 -9 ------- Run | Yrd Mat Min Mat Traps Triggered . | . . . . Indirectly . | . . . . Trap Hack Attempts . | . . . . Triggered . | . . . . Disarmed . | . . . . Reprogrammed . | . . . . Reused . | . . . . Traps Extracted . | . . . . Installed . | . . . . Triggered . | . . . . Machines | -11 -10 -10 -9 ---------- Run | Yrd Mat Min Mat Machines Disabled 1 | . 1 . . Max in Single Turn 1 | . 1 . . Machines Repaired . | . . . . Machines Dismantled . | . . . . Machines Sabotaged . | . . . . Overloaded Fab Kills . | . . . . Hacking | -11 -10 -10 -9 --------- Run | Yrd Mat Min Mat Machines Accessed 3 | . 1 . 2 Terminals 2 | . 1 . 1 Fabricators . | . . . . Repair Stations . | . . . . Recycling Units . | . . . . Scanalyzers 1 | . . . 1 Garrison Access . | . . . . Total Hacks 11 | . 5 . 6 Successful 6 | . 3 . 3 Failed 4 | . 2 . 2 Catastrophic . | . . . . Database Lockouts 1 | . . . 1 Manual . | . . . . Terminals 7 | . 5 . 2 Fabricators . | . . . . Repair Stations . | . . . . Recycling Units . | . . . . Scanalyzers 4 | . . . 4 Garrison Access . | . . . . Terminal Hacks 4 | . 3 . 1 Prototype ID Bank 2 | . 1 . 1 Locate Traps 1 | . 1 . . Reinforcement Status 1 | . 1 . . Fabricator Hacks . | . . . . Repair Station Hacks . | . . . . Recycling Unit Hacks . | . . . . Scanalyzer 2 | . . . 2 Retrieve Study 2 | . . . 2 Garrison Access Hacks . | . . . . Unauthorized Hacks . | . . . . Terminals . | . . . . Fabricators . | . . . . Repair Stations . | . . . . Recycling Units . | . . . . Scanalyzers . | . . . . Garrison Access . | . . . . Data Cores Recovered . | . . . . Used . | . . . . Hacking Detections 2 | . 1 . 1 Full Trace Events . | . . . . Feedback Events . | . . . . Feedback Blocked . | . . . . Robot Schematics Acquired . | . . . . Robots Built . | . . . . Authchips . | . . . . Time . | . . . . Total Robot Build Rating . | . . . . Part Schematics Acquired . | . . . . Parts Built . | . . . . Authchips . | . . . . Time . | . . . . Total Part Build Rating . | . . . . Part Studies Acquired 2 | . . . 2 Parts Repaired . | . . . . Time . | . . . . Parts Recycled . | . . . . Recycled Matter . | . . . . Retrieved Matter . | . . . . Retrieved Components . | . . . . Parts Scanalyzed . | . . . . Part Schematics Acquired . | . . . . Parts Damaged . | . . . . Bothacking | -11 -10 -10 -9 ------------ Run | Yrd Mat Min Mat Used RIF Installer . | . . . . Robots Hacked . | . . . . Non-combat . | . . . . Combat . | . . . . Robot Hacks Applied . | . . . . Relay Couplers Released . | . . . . Fabnet Peak Effective % . | . . . . Robots Rewired . | . . . . Allies Hacked . | . . . . Hacks Repelled . | . . . . Allies | -11 -10 -10 -9 -------- Run | Yrd Mat Min Mat Total Allies . | . . . . Largest Group . | . . . . Highest-Rated Group . | . . . . Highest-Rated Ally . | . . . . Total Orders . | . . . . Ally Attacks . | . . . . Total Damage . | . . . . Kills . | . . . . Allies Corrupted . | . . . . Allies Melted . | . . . . Intel | -11 -10 -10 -9 ------- Run | Yrd Mat Min Mat Active Infowar (turns) 104 | . . . 104 Sensors 104 | . . . 104 Robot Analysis Total . | . . . . Derelict Logs Recovered . | . . . . Drone Launches . | . . . . Drone Recoveries . | . . . . Exploration | -11 -10 -10 -9 ------------- Run | Yrd Mat Min Mat Turns Passed 927 | 69 456 298 104 Spaces Moved 664 | 48 261 237 118 Core 137 | 5 . 14 118 Treads 71 | . 71 . . Legs 145 | 43 102 . . Wheels 311 | . 88 223 . Hover . | . . . . Flight . | . . . . Fastest Speed 50 | 50 115 50 50 Average Speed 116 | 114 151 111 50 Slowest Speed 240 | 120 240 115 50 Overloaded Moves . | . . . . Propulsion Burnouts . | . . . . Robots Hopped . | . . . . Potential Cave-ins . | . . . . Cave-ins Triggered . | . . . . Exploration Rate (%) 28 | 3 44 53 13 Regions Visited 3 Branch Regions 1 Pre-discovered Areas . | . . . . Known Exits Taken . | . . . . Unknown Exits Taken 3 | 1 1 1 . Scrap Searched 2 | . . 2 . Spaces Dug . | . . . . Terrain Destroyed 39 | . . . 39 Melee . | . . . . Projectile . | . . . . AOE 39 | . . . 39 Terrain Rammed . | . . . . Walls Destroyed . | . . . . Machines Disabled . | . . . . Actions | -11 -10 -10 -9 --------- Run | Yrd Mat Min Mat Total 762 | 59 299 254 150 Wait 15 | . 2 1 12 Move 661 | 47 260 236 118 Hop . | . . . . Pick Up 19 | 6 8 2 3 Fast Attach 8 | 6 2 . . Attach 8 | . . 3 5 Detach 1 | . 1 . . Swap 5 | . 5 . . Drop 7 | . 5 2 . Fire 35 | . 15 10 10 Melee . | . . . . Ram 2 | . . . 2 Kick . | . . . . Crush 1 | . 1 . . Escape Stasis . | . . . . Rewire . | . . . . Trap . | . . . . Miscellaneous . | . . . . Route ------- -11/Scrapyard -10/Materials (discovered 2 exits: *Mat / [*Min]) -10/Mines (discovered 2 exits: *Mat x2) -9/Materials History --------- Turn | Location | Event 9 | -11/Scrapyard | Discovered new exit (range 15) 70 | -11/Scrapyard | Entered Materials 243 | -10/Materials | Discovered new exit (range 11) 300 | -10/Materials | Build established: Mutant 406 | -10/Materials | Discovered new exit (range 13) 526 | -10/Materials | Entered Mines 636 | -10/Mines | YI-UF0 nonchalantly dropped a Grenade Launcher on the ground 757 | -10/Mines | Discovered new exit (range 6) 770 | -10/Mines | Assembled infested the area 814 | -10/Mines | Core integrity fell below 50% 815 | -10/Mines | Discovered new exit (range 15) 824 | -10/Mines | Entered Materials 824 | -9/Materials | Evolved 2 slots: Propulsion x1, Utility x1 842 | -9/Materials | Central database locked down 849 | -9/Materials | Lost 4 parts (1p2n1w) 928 | -9/Materials | Self-destructed Last Messages --------------- 00888_ Destroyed Flight Unit. 00888_ S-10 Pest destroyed. 00894_ G-34 Mercenary destroyed. 00903_ Grenade Launcher+ destroyed. 00905_ R-06 Scavenger collects Lgt. Assault Rifle. 00905_ Mining Laser destroyed. 00906_ U-05 Engineer lays Concrete. 00910_ R-06 Scavenger collects Flight Unit. 00910_ L-31 Rogue suffers critical hit (Burn). 00910_ U-05 Engineer builds a Wall. 00911_ U-05 Engineer lays Concrete. 00913_ R-06 Scavenger collects Flight Unit. 00914_ U-05 Engineer lays Concrete. 00917_ Connecting with Terminal... >>Prototypes Downloading prototype IDs... Imp. VTOL Module Hvy. EM Shotgun 00919_ Acquired Terrain Scan Processor. 00920_ Slammed into T-07 Excavator. Map ----- +----------------------------------------------------+ | | | | | | | | | | | ??????????????????????????????????????? | | ??????????????????????????????????????? | | ??????????????????????????????????????? | | ??????????????????????????????????????? | | ??????????????????????????????????????? | | ???########???????????????????????????? | | ???# #???????????????????????????? | | ???# """ #??########+## #???????????? | | ???# """ #### #???????????? | | ???# """ + x #???????????? | | ???# #### #### ######???????????? | | ???# #??# #??# #????????????????? | | #######+####?# #??# ##???????????????? | | #?# #??# ???????????????? | | #?# #??# ???????????????? | | ###+#### ###????+##?x?????? | | ######## # #?????? #???????? | | ??????## "" # ###### T #???????? | | ??????# T" # # #???????? | | ??????# "" + + #???????? | | ??????# # #####@# #???????? | | ####### x # #???#a# #???????? | | ### #???# #? #???????? | | ####?#+#???#+#?###???????? | | #???? x ?????????????????? | | ##???? ?????????????????? | | """ #???? ????????????????? | | """"" #???? ??x?????????????? | | """"" #???# ???????????????? | | """"" #???# ???????????????? | | ? """ !#?# ??????????????? | | ?### !## ??????????????? | | ?? % !######+###?????????????? | | ? % !#??????????????????????? | | % !#??????????????????????? | | ###### # !##??????????????????????? | | ?????### ####???????????????????????? | | ???????? #??????????????????????????? | | ???????? #??????????????????????????? | | ???????? #??????????????????????????? | | ???????? ??????????????????????????? | | ???????? ??????????????????????????? | | ???????? ??????????????????????????? | | ???????? ???????????????????????????? | | ??????????????????????????????????????? | +----------------------------------------------------+ Best States ------------- Heat Dissipation 28 Energy Generation 10 Energy Capacity 125 Matter Stores 300 Matter Capacity 300 Sight Range 16 Robot Scan Range 14 Terrain Scan Density 10 Armor Coverage 150 Evasion (%) 55 Recoil Reduction 2 Item Schematics ----------------- None Robot Schematics ------------------ None Fabricated ------------ Nothing Repaired ---------- Nothing Studied --------- Grenade Launcher | -9/Materials | Hacked Med. Laser | -9/Materials | Hacked Alien Tech Used ----------------- None Achievements -------------- None Challenges ------------ None Game ------ Seed ZeronetMakeshiftGravjet Manual? 0 Play Time 00:09:43 Cumulative 221.1 hours Start 2026.01.10 @ 16:45:03 End 2026.01.10 @ 16:53:05 Sessions 1 Manual Loads 0 Difficulty Rogue Special Mode None Game No. 168 Rogue 42 Adventurer 47 Explorer 79 Win Type - Total 33 Types 23/2/7/1/0/0/0/0/0/0 Lore% 54 Gallery% 69 Achievement% 44 Wizard Run 0 Options --------- Layout 0 ASCII 0 Keyboard 1 Movement Numpad Keybinds 0 Fullscreen 2 Font 18/SmallcapsGlow Map View 76x50 Zoom Use 0% Tactical HUD 1 Map Filters NONE Filters NONE Steam 1 RUN: 8a49fc67-9f4b-4770-bc85-7f7f406ed976